[Event "European Women-ch 2023"]
[Site "Petrovac"]
[Date "2023.03.27"]
[Round "9.4"]
[White "Guichard, Pauline"]
[Black "Daulyte-Cornette, Deimante"]
[Result "1-0"]
[ECO "D38"]
[WhiteElo "2379"]
[BlackElo "2344"]
[Annotator "TA"]
[PlyCount "89"]
[EventDate "2023.03.15"]
[EventType "swiss"]
[EventCountry "MNE"]
[SourceTitle "playchess.com"]
[Source "ChessBase"]
[SourceQuality "1"]
[TimeControl "40/5400+30:1800+30"]

{[%evp 12,89,6,20,20,27,28,25,30,22,30,46,40,27,81,86,85,94,94,94,94,97,82,74,85,88,84,93,83,51,96,89,168,159,337,84,295,308,654,566,880,900,897,895,863,858,858,751,1114,542,534,540,529,491,2795,513,1031,860,1293,1274,1120,585,554,-200,-195,-276,-231,-268,-260,-242,29989,29990,29990,29991,29992,29993,29993,1290,29989,835]} 1. d4 {[%emt 0:00:03]} d5 {[%emt 0:00:06]} 2. c4 {[%emt 0:00:11]} e6 {[%emt 0:00:07]} 3. Nf3 {[%emt 0:00:18]} Nf6 {[%emt 0:00:12]} 4. Nc3 {[%emt 0:00:13]} Bb4 {[%emt 0:00:14]} 5. Qa4+ {[%emt 0:00:53]} Nc6 {[%emt 0:00:08]} 6. e3 {[%emt 0:00:09]} O-O {[%emt 0:00:23]} 7. Bd2 {[%emt 0:00:12]} Re8 {[%emt 0:03:56] D38: Queen's Gambit Declined: Ragozin Defence (4 Nf3 Bb4).} 8. a3 {[%emt 0:00:20]} Bf8 {[%emt 0:00:33]} 9. Be2 {[%emt 0:00:14]} a6 {[%emt 0:02:53] White has an edge.} 10. O-O {[%emt 0:03:13]} h6 {[%emt 0:07:57]} 11. Rad1 {[%emt 0:00:21]} Bd7 {[%emt 0:31:17][%cal Oc6d4] White must now prevent ...Nxd4!} 12. Qc2 {[%emt 0:01:06] [#]} Bd6 $146 {[%emt 0:00:14] Prevents Ne5.} (12... dxc4 $1 $11 13. Bxc4 Bd6) ({Predecessor:} 12... Ne7 13. Ne5 dxc4 14. Bxc4 c5 15. Ne4 Nxe4 16. Qxe4 cxd4 17. Qxb7 Ba4 18. b3 Bb5 {½-½ Nowak,L (2370)-Kosakowski,J (2475) POL-ch sf Karpacz 2022 (2)}) 13. c5 $16 {[%emt 0:07:24]} Bf8 {[%emt 0:00:47]} 14. Ne5 {[%emt 0:00:32]} Nxe5 {[%emt 0:02:47]} 15. dxe5 {[%emt 0:00:06]} Ne4 {[%emt 0:00:03]} 16. Nxe4 {[%emt 0:21:46]} dxe4 {[%emt 0:00:05]} 17. Ba5 {[%emt 0:00:48] aiming for c6.} Qc8 {[%emt 0:10:15]} 18. Qxe4 {[%emt 0:05:25]} Bxc5 {[%emt 0:00:24]} 19. Bd3 {[%emt 0:05:32]} g6 {[%emt 0:00:10]} 20. Rc1 {[%emt 0:13:44]} Bc6 {[%emt 0:06:22]} 21. Qf4 {[%emt 0:00:17]} Qd7 {[%emt 0:14:04]} (21... b6 $16) 22. Rfd1 $1 $36 {[%emt 0:06:36][%mdl 2048] White is in control.} (22. Rxc5 $6 Qxd3 23. Qxh6 Rad8 $16) (22. Qxh6 $2 Bf8 23. Qf4 Qxd3 $19) 22... Qd5 $2 {[%emt 0:00:26] [#]} (22... Qe7 $16 {keeps fighting.} 23. Qxh6 Rad8) 23. Qg3 $2 {[%emt 0:03:45] Active counter play!} (23. Bf1 $1 $18 {and the rest is easy.} Bxe3 24. Qxe3 Qxa5 25. b4) 23... b6 $2 {[%emt 0:07:48]} (23... Bf8 $16 24. Bxc7 Qb3) 24. Bb1 {[%emt 0:11:08]} Qb3 {[%emt 0:00:25]} (24... Qxg2+ 25. Qxg2 Bxg2) 25. Bc2 {[%emt 0:05:32]} Qa2 {[%emt 0:01:33] [#]} 26. Bxg6 $1 {[%emt 0:00:44][%mdl 576] Demolition} fxg6 {[%emt 0:00:19]} 27. Qxg6+ {[%emt 0:00:06]} Kh8 {[%emt 0:01:51]} 28. Qxh6+ {[%emt 0:00:29]} Kg8 {[%emt 0:00:03]} 29. Qg5+ {[%emt 0:03:31]} Kf8 {[%emt 0:02:01]} 30. Qf4+ {[%emt 0:00:11]} (30. Bb4 $142 {Rd4 would kill now.} Qb3 31. Rd4) 30... Kg8 {[%emt 0:00:09]} 31. Qg4+ {[%emt 0:01:49]} Kf8 {[%emt 0:01:15]} 32. Bd2 {[%emt 0:06:02]} Ke7 {[%emt 0:03:44]} (32... Red8 $142 33. e4 Rd4 34. Bh6+ Ke8) 33. Bb4 {[%emt 0:02:45]} (33. Rxc5 $142 {[%cal Od2b4] Threatening mate with Bb4!} Kd7 34. Qg7+ {[%mdl 64] Skewer} Re7 35. Ba5+ Qd5 36. Rdxd5+ exd5 37. Qg4+ Re6 38. Rxc6 {[%mdl 64] Pin}) 33... Rg8 {[%emt 0:00:29]} (33... Red8 $142 34. Qh4+ Ke8 35. Qh8+ Ke7 36. Qg7+ Ke8 37. Qh8+ (37. Qxc7 Ba4 $16) 37... Ke7 38. Qh7+ Kf8 39. Qh8+ Ke7) 34. Qh4+ {[%emt 0:00:15]} Ke8 {[%emt 0:02:04]} 35. Qh5+ {[%emt 0:00:10]} Kf8 {[%emt 0:00:15]} 36. Qh6+ {[%emt 0:00:40]} Rg7 {[%emt 0:01:51][%cal Of8g8]} 37. Rd4 $4 {[%emt 0:01:24][%mdl 8192]} (37. Bxc5+ $18 {was the only winning move.} Kg8 38. Be7 Rxg2+ 39. Kf1) 37... Kg8 $1 $19 {[%emt 0:00:00]} (37... Bxg2 $2 38. Rd7 (38. Bxc5+ Kg8 $11) 38... Bxb4 39. Qxg7+ Ke8 40. Qf7#) 38. Rh4 {[%emt 0:00:57]} (38. Rdc4 {is a better defense.} Rxg2+ 39. Kf1) 38... Rxg2+ {[%emt 0:00:02]} (38... Qxb2 $2 39. Qh8+ Kf7 40. Rf4+ Ke7 41. Bxc5+ Kd7 42. Qxg7+ $18) 39. Kf1 {[%emt 0:00:01][%cal Bg1f1,Bf1e1,Be1e2][%mdl 32] [#]} Rxf2+ $3 {[%emt 0:00:08][%mdl 576] Double Attack} 40. Ke1 {[%emt 0:00:00] [#] White wants to mate with Qg6+.} Re2+ $4 {[%emt 0:00:00][%mdl 8192]} 41. Kxe2 {[%emt 0:02:19]} Qxb2+ {[%emt 0:03:05]} 42. Bd2 {[%emt 0:01:23]} Bb5+ {[%emt 0:03:32]} 43. Ke1 {[%emt 0:01:27]} Qxe5 {[%emt 0:01:00]} 44. Qh7+ {[%emt 0:09:12]} Kf8 {[%emt 0:00:06]} 45. Qh8+ {[%emt 0:01:03] A brilliant game!   Weighted Error Value: White=0.84/Black=0.62} (45. Rg4 $142 Ke8 46. Rxc5 Qxc5 47. Rg8+ Qf8 48. Rxf8+ Kxf8 49. Bc3 e5 50. Bxe5) 1-0

[Event "European Women-ch 2023"]
[Site "Petrovac"]
[Date "2023.03.27"]
[Round "9.4"]
[White "Gaponenko, Inna"]
[Black "Schulze, Lara"]
[Result "1-0"]
[ECO "C78"]
[WhiteElo "2349"]
[BlackElo "2277"]
[Annotator "TA"]
[PlyCount "115"]
[EventDate "2023.03.15"]
[EventType "swiss"]
[EventCountry "MNE"]
[SourceTitle "playchess.com"]
[Source "ChessBase"]
[SourceQuality "1"]
[TimeControl "40/5400+30:1800+30"]

{[%evp 21,115,0,8,12,4,10,43,0,0,0,0,-11,0,-12,0,0,0,0,0,0,0,0,0,-12,0,-16,174,188,160,108,141,156,367,201,202,193,1456,105,97,102,98,43,43,38,37,0,37,29,111,104,168,168,168,168,168,168,168,168,168,119,328,321,328,360,556,531,462,425,1416,1429,1253,1171,1007,927,29977,29978,29977,29979,29979,29980,29980,29981,29979,29982,29982,29983,29983,29983,29983,29983,29984,29984,29983,29984,29984,29980]} 1. e4 {[%emt 0:00:02]} e5 {[%emt 0:00:02]} 2. Nf3 {[%emt 0:00:09]} Nc6 {[%emt 0:00:04]} 3. Bb5 {[%emt 0:00:08][%cal Bf1b5,Bb5a4,Ba4b3][%mdl 32]} a6 {[%emt 0:00:06]} 4. Ba4 {[%emt 0:00:32]} Nf6 {[%emt 0:00:10]} 5. O-O {[%emt 0:01:03]} Bc5 {[%emt 0:00:09]} 6. c3 {[%emt 0:00:14]} b5 {[%emt 0:00:10]} 7. Bb3 {[%emt 0:00:11]} d6 {[%emt 0:00:16]} 8. d4 {[%emt 0:00:07]} Bb6 {[%emt 0:00:11]} 9. Be3 {[%emt 0:00:15]} O-O {[%emt 0:01:57]} 10. Nbd2 {[%emt 0:00:10]} h6 {[%emt 0:04:18]} 11. h3 {[%emt 0:04:51]} Re8 {[%emt 0:03:25]} 12. Re1 {[%emt 0:01:06] C78: Ruy Lopez: Archangelsk and Möller Defences.} exd4 {[%emt 0:05:55]} 13. cxd4 {[%emt 0:03:04][%cal Oe4e5]} Nb4 {[%emt 0:01:40]} (13... Nxe4 $2 14. Nxe4 (14. Bd5 Nxd2 15. Nxd2 Bb7 $16) 14... Rxe4 15. Bd5 Rxe3 16. Rxe3 $18 (16. fxe3 Qe8 $16)) 14. Qb1 {[%emt 0:27:49]} (14. Qe2 $14) 14... c5 $1 $11 {[%emt 0:03:20]} 15. a3 {[%emt 0:42:11] dxc5 would be deadly.} Nc6 {[%emt 0:01:34]} 16. d5 {[%emt 0:00:02] [#]} Nd4 $146 {[%emt 0:05:35]} ({Predecessor:} 16... Ne7 17. Nf1 Ng6 18. Ng3 c4 19. Bc2 Bd7 20. b3 Rc8 21. b4 a5 22. Bxb6 Qxb6 23. bxa5 Qxa5 {1-0 Vokhidov,S (2529)-Kuybokarov,T (2549) Asian Hybrid 2021 (8)}) 17. Bd1 {[%emt 0:03:42]} Nxf3+ {[%emt 0:11:58]} 18. Bxf3 {[%emt 0:00:03]} c4 {[%emt 0:01:15]} 19. b3 {[%emt 0:02:12]} cxb3 {[%emt 0:15:35]} 20. Nxb3 {[%emt 0:00:05]} Nd7 {[%emt 0:02:52]} 21. a4 {[%emt 0:03:54]} Ne5 {[%emt 0:03:57] Strongly threatening ...Nxf3+.} 22. Bd1 {[%emt 0:00:02]} (22. axb5 $2 Nxf3+ 23. gxf3 Bxh3 $19) 22... bxa4 {[%emt 0:03:23]} 23. Nd4 {[%emt 0:00:43] aiming for Nc6.} Nc4 $2 {[%emt 0:19:27]} (23... Rb8 $1 $11 {and Black is okay.}) 24. Nc6 $18 {[%emt 0:00:46]} ({Worse is} 24. Rxa4 Nxe3 25. fxe3 Bc5 $17) 24... Qc7 {[%emt 0:00:12]} 25. Bxb6 {[%emt 0:00:47]} ({And not} 25. Rxa4 Nxe3 26. fxe3 Bd7 $15) ({Stronger than} 25. Bxa4 Bxe3 26. Qc2 (26. fxe3 Nd2 $11) 26... Bxf2+ 27. Kxf2 Nb6 $11) (25. Bf4 $142 $1) 25... Qxb6 {[%emt 0:02:09]} 26. Bxa4 {[%emt 0:04:37][%cal Oc6a5] Threatens to win with Na5!} Bd7 $2 {[%emt 0:00:57]} (26... Nb2 $16 {was necessary.} 27. Bc2 Nc4 28. Qxb6 Nxb6) 27. Qc2 {[%emt 0:02:16]} (27. Qa2 $142) 27... Ne5 {[%emt 0:00:55]} 28. Reb1 {[%emt 0:00:51]} Qc7 {[%emt 0:02:13]} (28... Qc5) 29. Nxe5 $2 {[%emt 0:00:09]} (29. Ne7+ $18 Rxe7 30. Qxc7) 29... Qxc2 $16 {[%emt 0:00:28]} 30. Bxc2 {[%emt 0:00:04]} dxe5 {[%emt 0:02:59]} 31. Bd3 {[%emt 0:01:35] Inhibits Bb5.} (31. Ra5 $16) 31... a5 $1 $14 {[%emt 0:00:19]} 32. Rb7 {[%emt 0:00:22]} Red8 {[%emt 0:01:50]} 33. Bc4 {[%emt 0:02:17]} Kf8 {[%emt 0:01:39]} 34. f3 {[%emt 0:00:25]} Ke8 {[%emt 0:01:10] [#]} (34... a4 $11) 35. Bb5 $1 $36 {[%emt 0:00:31][%mdl 2048] White is on the roll. White is much more active.} a4 {[%emt 0:01:46] [#]} (35... g5 $16) 36. Rxd7 $1 $18 {[%emt 0:00:29]} Rxd7 {[%emt 0:00:07]} 37. Rxa4 {[%emt 0:00:09]} Rb8 {[%emt 0:00:46]} 38. Bxd7+ {[%emt 0:00:07]} Kxd7 {[%emt 0:00:10][%mdl 4096] Endgame KR-KR} 39. Ra7+ {[%emt 0:00:14]} Ke8 {[%emt 0:00:05]} 40. h4 {[%emt 0:00:00]} ({White should play} 40. Kh2 $18) 40... Rb2 $2 {[%emt 0:00:00]} (40... h5 $16 {might work better.} 41. Ra2 Rb3) 41. h5 {[%emt 0:11:17]} Rd2 {[%emt 0:03:57]} 42. Kh2 {[%emt 0:02:34]} Rb2 {[%emt 0:03:01]} (42... Kf8 $142 43. Kg3 Ke8) 43. Kh3 {[%emt 0:08:36]} Rf2 {[%emt 0:01:00]} 44. Rc7 {[%emt 0:01:00]} Kf8 {[%emt 0:09:40]} (44... Ra2 $142 45. g3 Rb2) 45. d6 {[%emt 0:05:03][%cal Rc7c8]} Ke8 {[%emt 0:01:09]} 46. Re7+ {[%emt 0:01:28]} Kf8 {[%emt 0:00:06]} 47. Rxe5 {[%emt 0:00:15] Threatening mate with d7.} Rd2 {[%emt 0:00:34]} 48. Rd5 {[%emt 0:00:13] White mates.} Rxd5 {[%emt 0:00:06]} 49. exd5 {[%emt 0:00:03] KP-KP} Ke8 {[%emt 0:00:16]} 50. Kg4 {[%emt 0:00:04]} Kd7 {[%emt 0:00:04]} 51. Kf5 {[%emt 0:00:06]} Kxd6 {[%emt 0:00:09]} 52. Ke4 {[%emt 0:00:01]} Kd7 {[%emt 0:01:32]} 53. Ke5 {[%emt 0:00:32]} Ke7 {[%emt 0:00:10]} 54. g4 {[%emt 0:01:08]} Kd7 {[%emt 0:00:40]} 55. f4 {[%emt 0:00:22]} Ke7 {[%emt 0:00:05]} 56. g5 {[%emt 0:01:16]} Kd7 {[%emt 0:00:27]} 57. gxh6 {[%emt 0:01:16]} gxh6 {[%emt 0:00:05]} 58. Ke4 {[%emt 0:00:02] Weighted Error Value: White=0.25 (precise) /Black=0.39} 1-0

[Event "European Women-ch 2023"]
[Site "Petrovac"]
[Date "2023.03.27"]
[Round "9.4"]
[White "Spalir, Monika"]
[Black "Shuqja, Klean"]
[Result "1/2-1/2"]
[ECO "B01"]
[WhiteElo "2125"]
[BlackElo "1884"]
[Annotator "TA"]
[PlyCount "81"]
[EventDate "2023.03.15"]
[EventType "swiss"]
[EventCountry "MNE"]
[SourceTitle "playchess.com"]
[Source "ChessBase"]
[SourceQuality "1"]
[TimeControl "40/5400+30:1800+30"]

{[%evp 10,81,61,65,62,50,61,61,65,52,56,52,67,47,53,48,62,61,77,64,66,60,66,75,74,74,75,75,69,83,68,73,79,75,76,75,80,41,44,40,41,20,39,0,0,-86,-104,-193,-195,-192,-200,-233,-175,-187,-178,-210,-161,-150,-151,-162,-142,-160,-149,-226,-128,-139,-143,-200,0,-143,0,-200,0,-137]} 1. e4 {[%emt 0:00:03]} d5 {[%emt 0:01:03]} 2. exd5 {[%emt 0:00:04]} Qxd5 {[%emt 0:00:01]} 3. Nc3 {[%emt 0:00:07]} Qd8 {[%emt 0:00:04]} 4. d4 {[%emt 0:00:11]} Nf6 {[%emt 0:00:08]} 5. Nf3 {[%emt 0:00:18]} Bg4 {[%emt 0:00:26]} 6. h3 {[%emt 0:00:05]} Bxf3 {[%emt 0:00:04] B01: Scandinavian Defence.} 7. Qxf3 {[%emt 0:00:04]} (7. gxf3 e6 $11) 7... c6 {[%emt 0:00:04]} 8. Be3 {[%emt 0:00:07]} e6 {[%emt 0:00:04] White is slightly better.} 9. Bd3 {[%emt 0:00:12]} Qa5 {[%emt 0:01:13]} 10. O-O {[%emt 0:01:35] [#]} Be7 $146 {[%emt 0:09:49]} ({Predecessor:} 10... Nbd7 11. a3 Be7 12. Ne2 O-O 13. c4 Rfe8 14. Nc3 Rad8 15. Rfd1 Qc7 16. Rac1 a5 {½-½ Xiong,J (2473)-Iotov,V (2579) Dallas UT-USA Juniors 2015 (4.2)}) 11. a3 {[%emt 0:00:24]} Qc7 {[%emt 0:01:22]} 12. Rfe1 {[%emt 0:01:14]} O-O {[%emt 0:00:49]} 13. Bf4 {[%emt 0:05:26]} Bd6 {[%emt 0:08:48]} 14. Bg5 {[%emt 0:02:01] White has more active pieces. A strong pair of Bishops.} Nbd7 {[%emt 0:02:13]} 15. Ne4 {[%emt 0:00:54]} Nxe4 {[%emt 0:01:41]} 16. Qxe4 {[%emt 0:02:34][%csl Gd3][%cal Re4h7]} g6 {[%emt 0:00:38]} 17. h4 {[%emt 0:01:26][%cal Bh3h4,Bh4h5][%mdl 32]} Rfe8 {[%emt 0:05:52] [#]} 18. h5 $1 {[%emt 0:01:31][%cal Rh5g6]} Be7 {[%emt 0:08:25]} (18... Qa5 19. Qh4) 19. Bxe7 {[%emt 0:04:32]} Rxe7 {[%emt 0:00:11]} 20. Qh4 {[%emt 0:00:21] Repels Nf6} Ree8 {[%emt 0:04:10]} 21. Re3 {[%emt 0:14:40] Hoping for hxg6.} Qd8 {[%emt 0:02:29]} 22. Qg3 {[%emt 0:00:12][%cal Rh5g6] hxg6 would be deadly.} Qf6 {[%emt 0:09:52]} 23. Rd1 {[%emt 0:07:33]} Rac8 {[%emt 0:05:05]} (23... Qxd4 $2 24. Be2 Qxb2 25. Rxd7 $18) 24. Rf3 {[%emt 0:04:38]} Qg7 {[%emt 0:01:34]} 25. Qf4 {[%emt 0:02:17]} e5 {[%emt 0:06:31]} (25... g5 {is more complex.} 26. h6 gxf4 27. hxg7 e5) 26. Qh4 {[%emt 0:13:15]} e4 {[%emt 0:12:40]} 27. Bxe4 {[%emt 0:02:09] [#]} (27. h6 $1 $11 {was the only way to keep the balance.} Qxd4 {[%mdl 64] Pin, Double Attack} 28. Rxf7 {[%mdl 64] Decoy} Kxf7 29. Bc4+ (29. Be2 Qe5 $17) 29... Qxc4 30. Rxd7+ Ke6 31. Qg4+ Ke5 32. f4+ Kf6 33. Qg5+ Ke6 34. Qg4+ Kf6 35. Qg5+ Ke6 36. Qg4+ Kf6) 27... g5 $1 $36 {[%emt 0:00:39][%mdl 2048] Black has strong initiative.} 28. Bxh7+ {[%emt 0:07:26]} Kxh7 $19 {[%emt 0:00:33]} 29. Qg4 {[%emt 0:00:11]} Rcd8 {[%emt 0:05:06][%cal Od7e5]} 30. Rf1 {[%emt 0:04:38]} Re6 {[%emt 0:03:09]} 31. Qf5+ {[%emt 0:03:34]} Kh6 {[%emt 0:01:59]} 32. Qa5 {[%emt 0:01:09]} b6 {[%emt 0:03:39]} 33. Qxa7 {[%emt 0:00:12]} f6 {[%emt 0:02:08]} ({Don't play} 33... Qxd4 $6 34. Rd3 (34. Rxf7 Nf6 $17) 34... Qxb2 35. Rxd7 Rxd7 36. Qxd7 $11) (33... Kxh5 34. Qc7 Qf8 35. Rh3+ (35. Qg3 $2 Kg6 $19) 35... Kg6 36. f4 $11) 34. Qa6 {[%emt 0:02:45]} Rde8 {[%emt 0:02:27]} (34... Kxh5 $2 35. Qd3 g4 36. Qf5+ Kh6 37. Rg3 $18 (37. Qxe6 gxf3 38. Qh3+ Kg6 $11)) 35. Qd3 {[%emt 0:00:03]} Qh7 {[%emt 0:00:45]} (35... Kxh5 $2 {gets mated.} 36. Rh3+ Kg4 37. Qf3#) 36. Qc3 {[%emt 0:00:49]} (36. Qxh7+ $17 Kxh7 37. Rc3) 36... Qe4 {[%emt 0:00:59]} (36... Kxh5 $2 37. Rh3+ Kg6 38. Qd3+ f5 39. Rxh7 $18) (36... b5 $19 {White must now prevent ...Nb6.} 37. Qb3 R8e7) 37. Re3 $17 {[%emt 0:01:59]} Qf5 {[%emt 0:00:44]} 38. Rf3 {[%emt 0:04:32]} (38. Rfe1 $17) 38... Qe4 {[%emt 0:00:33]} 39. Re3 {[%emt 0:00:11]} Qh7 {[%emt 0:01:29]} ({Better is} 39... Qf4 $17 {[%cal Re6e3]} 40. Qd3 f5) 40. Rd3 $2 {[%emt 0:00:00]} (40. Rf3 $1 $11 {and White stays safe.}) 40... Qe4 {[%emt 0:00:00]} (40... Kxh5 $2 41. Rh3+ Kg6 42. Qd3+ {[%mdl 64] Skewer} f5 43. Rxh7 $18) 41. Re3 {[%emt 0:07:36] Weighted Error Value: White=0.27 (precise) /Black=0.28 (precise)} 1/2-1/2

[Event "European Women-ch 2023"]
[Site "Petrovac"]
[Date "2023.03.27"]
[Round "9.5"]
[White "Osmak, Yuliia"]
[Black "Buksa, Nataliya"]
[Result "0-1"]
[ECO "D35"]
[WhiteElo "2445"]
[BlackElo "2405"]
[Annotator "TA"]
[PlyCount "114"]
[EventDate "2023.03.15"]
[EventType "swiss"]
[EventCountry "MNE"]
[SourceTitle "playchess.com"]
[Source "ChessBase"]
[SourceQuality "1"]
[TimeControl "40/5400+30:1800+30"]

{[%evp 12,114,22,12,13,18,12,19,18,23,25,16,25,17,19,13,13,28,16,33,14,16,58,57,55,13,34,35,78,82,46,52,50,6,14,10,13,0,0,0,7,0,21,0,0,0,0,0,0,0,44,-7,-7,-172,-172,-225,-209,-228,-213,-252,-227,-377,-373,-411,-400,-450,-435,-633,-631,-621,-562,-592,-564,-917,-906,-1020,-1302,-1267,-1317,-1354,-1370,-1136,-1046,-1374,-1295,-924,-571,-1844,-1789,-12836,-5908,-12837,-12837,-12838,-12835,-12839,-12837,-12843,-12843,-12845,-12846,-12846,-12847,-12847,-12847]} 1. d4 {[%emt 0:00:01]} d5 {[%emt 0:02:41]} 2. c4 {[%emt 0:00:04]} e6 {[%emt 0:00:03]} 3. Nf3 {[%emt 0:00:05]} Nf6 {[%emt 0:00:14]} 4. Nc3 {[%emt 0:00:12]} Nbd7 {[%emt 0:00:39]} 5. Bf4 {[%emt 0:00:20]} Bb4 {[%emt 0:00:19]} 6. cxd5 {[%emt 0:01:27]} exd5 {[%emt 0:00:05]} 7. e3 {[%emt 0:00:07]} Ne4 {[%emt 0:01:35] 7...c5 is not played anymore. D35: Queen's Gambit Declined: Exchange Variation.} 8. Qc2 {[%emt 0:00:16]} g5 {[%emt 0:00:28]} 9. Be5 {[%emt 0:01:10] [#]} Rg8 $146 {[%emt 0:00:05] The position is equal.} ({Predecessor:} 9... f6 10. Bg3 h5 11. h4 g4 12. Ng1 Nxg3 13. fxg3 Qe7 14. Kf2 Nb6 15. Bd3 Be6 {1-0 Indjic,A (2631)-Kravtsiv,M (2598) Speed Chess Q2 blitz 2022 (8)}) 10. Bd3 {[%emt 0:02:49]} Bxc3+ {[%emt 0:02:44]} 11. bxc3 {[%emt 0:00:16]} g4 $1 {[%emt 0:00:23]} 12. Bxe4 {[%emt 0:09:44]} dxe4 {[%emt 0:00:04]} 13. Qxe4 {[%emt 0:04:08] Hoping for Bf6+.} Qe7 {[%emt 0:00:28] Against Bf6} 14. Qxh7 {[%emt 0:08:03]} Rf8 {[%emt 0:00:04]} 15. Nd2 {[%emt 0:01:36][%cal Bf3d2,Bd2b3,Bb3d4][%mdl 32]} Nxe5 {[%emt 0:00:06]} 16. dxe5 {[%emt 0:00:10]} Bd7 {[%emt 0:00:01]} 17. Qe4 {[%emt 0:05:34]} O-O-O {[%emt 0:00:29][%cal Ba8d8,Bd8d5,Bd5e5][%mdl 32]} 18. Nb3 {[%emt 0:17:01] Threatens to win with Na5.} Bc6 {[%emt 0:16:18]} (18... f5 $5 {[%cal Rf5e4]} 19. Qf4 Rde8 $14) 19. Qf4 {[%emt 0:11:50]} Kb8 {[%emt 0:37:36]} 20. O-O {[%emt 0:05:12]} ({Not} 20. Qxg4 Rg8 21. Qf4 Bxg2 $17) 20... Rd5 {[%emt 0:03:55]} 21. Nd4 {[%emt 0:02:24]} Bd7 {[%emt 0:01:22]} 22. Qf6 {[%emt 0:04:55]} Qxe5 {[%emt 0:02:26]} 23. Qxe5 {[%emt 0:00:27]} Rxe5 {[%emt 0:00:03]} 24. Ne2 {[%emt 0:01:38]} Bb5 {[%emt 0:05:46]} 25. Rfe1 {[%emt 0:00:05]} Rc5 {[%emt 0:00:06]} 26. Rac1 {[%emt 0:01:55]} a5 {[%emt 0:01:04]} 27. a3 {[%emt 0:06:32]} Rh8 {[%emt 0:06:48]} 28. Nf4 {[%emt 0:05:56] Repels Rch5} Rd8 {[%emt 0:00:26]} 29. e4 {[%emt 0:05:14]} Rd2 {[%emt 0:02:07]} 30. Nd5 {[%emt 0:01:02]} Bd7 {[%emt 0:09:11]} 31. c4 {[%emt 0:02:11]} ({White should try} 31. Rcd1 $14 Rb2 32. Nf6) 31... Rd3 $11 {[%emt 0:00:04]} 32. Re3 $2 {[%emt 0:00:31] This costs White the game.} (32. h4 $11 {and White stays safe.} gxh3 33. Re3 Rxe3 34. Nxe3) 32... Rxc4 $1 $19 {[%emt 0:00:07][%mdl 64] Deflection, Back Rank} 33. Rf1 {[%emt 0:02:42]} (33. Rb1 $142 Rxe3 34. fxe3) 33... Rxe3 $1 {[%emt 0:02:40]} 34. fxe3 {[%emt 0:00:03][%mdl 4096] Endgame [#] KRB-KRN} Be6 {[%emt 0:00:01]} ({Stronger than} 34... Rxe4 35. Nf6 Re7 36. Nxd7+ Rxd7 37. Kf2 $17) 35. Nf4 {[%emt 0:00:47]} Rxe4 {[%emt 0:00:49]} 36. Nxe6 {[%emt 0:00:03]} (36. Kf2 {was necessary.}) 36... fxe6 {[%emt 0:00:05] KR-KR} ({Weaker is} 36... Rxe6 37. Rf5 $17) 37. Kf2 {[%emt 0:01:22]} b5 {[%emt 0:01:18]} 38. Rb1 {[%emt 0:00:17]} c6 {[%emt 0:00:13] Black is clearly winning.} 39. h4 {[%emt 0:00:16]} (39. Rh1 $142 Ra4 40. Kg3) 39... gxh3 {[%emt 0:01:09]} 40. gxh3 {[%emt 0:00:00]} Kc7 {[%emt 0:00:00]} 41. Kf3 {[%emt 0:02:37]} Ra4 {[%emt 0:01:54]} 42. Rh1 {[%emt 0:07:56]} Rxa3 {[%emt 0:08:01] ...Rd3 would be deadly.} 43. h4 {[%emt 0:00:04]} Rd3 {[%emt 0:00:02]} 44. h5 {[%emt 0:00:17]} Rd7 {[%emt 0:02:05]} 45. h6 {[%emt 0:00:05]} Rh7 {[%emt 0:00:03]} 46. Ke4 {[%emt 0:00:41]} Kd6 {[%emt 0:03:46] White must now prevent ...a4.} 47. Kd4 {[%emt 0:00:13]} e5+ {[%emt 0:02:31]} 48. Ke4 {[%emt 0:02:17]} c5 {[%emt 0:04:33][%cal Bc6c5,Bc5c4][%mdl 32]} 49. Rh5 {[%emt 0:03:18]} a4 {[%emt 0:05:02][%cal Ba5a4,Ba4a3,Ba3a2][%mdl 32]} 50. Kd3 {[%emt 0:04:57]} a3 {[%emt 0:00:04]} 51. Kc2 {[%emt 0:00:13]} c4 {[%emt 0:01:22]} 52. Kc3 {[%emt 0:00:07]} Kc6 {[%emt 0:05:37]} 53. e4 {[%emt 0:00:56]} Kb6 {[%emt 0:04:01]} 54. Rxe5 {[%emt 0:05:31]} Rxh6 {[%emt 0:00:03]} 55. Kb4 {[%emt 0:00:16]} a2 {[%emt 0:00:09]} 56. Rxb5+ {[%emt 0:00:23] [#]} Ka7 $1 {[%emt 0:00:03]} 57. Ra5+ {[%emt 0:00:28]} Ra6 {[%emt 0:00:03] Weighted Error Value: White=0.49/Black=0.05 (flawless)} 0-1